fUST/lending_fUST_20250906
["ID","MTS","AMOUNT","RATE_DAILY","PERIOD"]
[383900408,1757170233068,-203.21852024,0.000136,2]
[383900409,1757170233077,-160.0,0.000136,2]
[383900410,1757170233087,-975.0,0.00013624,2]
[383900411,1757170233098,-409.0,0.00013624,2]
[383900412,1757170233109,-2154.0,0.00013624,2]
[383900413,1757170233119,-634.0,0.00013624,2]
[383900414,1757170233129,-1905.67952113,0.00013655,2]
[383900415,1757170233139,-500.0,0.00013673,2]
[383900416,1757170233151,-500.0,0.00013673,2]
[383900417,1757170233162,-500.57562405,0.00013673,2]
[383900418,1757170233172,-512.6960186,0.00013673,2]
[383900419,1757170233182,-500.0,0.00013673,2]
[383900420,1757170233191,-500.0,0.00013673,2]
[383900421,1757170233201,-500.01876604,0.00013673,2]
[383900422,1757170233211,-500.96789446,0.00013673,2]
[383900423,1757170233221,-500.0,0.00013673,2]
[383900424,1757170233231,-500.0,0.00013673,2]
[383900425,1757170233241,-500.0,0.00013673,2]
[383900426,1757170233251,-400.72478266,0.00013673,2]
[383900427,1757170233261,-500.0,0.00013673,2]
[383900428,1757170233271,-500.0,0.00013673,2]
[383900429,1757170233281,-521.33749465,0.00013673,2]
[383900430,1757170233291,-500.00793289,0.00013673,2]
[383900431,1757170233301,-158.0,0.00013673,2]
[383900432,1757170233311,-500.0,0.00013673,2]
[383900433,1757170233321,-500.0,0.00013673,2]
[383900434,1757170233331,-503.0665566,0.00013673,2]
[383900435,1757170233341,-500.0,0.00013673,2]
[383900436,1757170233351,-501.67970441,0.00013673,2]
[383900437,1757170233361,-500.0,0.00013673,2]
[383900438,1757170233371,-500.0,0.00013673,2]
[383900439,1757170233382,-504.62796832,0.00013673,2]
[383900440,1757170233391,-500.0,0.00013673,2]
[383900441,1757170233401,-500.73139972,0.00013673,2]
[383900442,1757170233411,-151.0,0.00013673,2]
[383900443,1757170233420,-151.0,0.00013673,2]
[383900444,1757170233430,-151.0,0.00013673,2]
[383900445,1757170233440,-255.152554,0.00013673,2]
[383900446,1757170233450,-478.433135,0.00013673,2]
[383900447,1757170233460,-478.433135,0.00013673,2]
[383900448,1757170233470,-478.433135,0.00013673,2]
[383900449,1757170233480,-478.433135,0.00013673,2]
[383900450,1757170233490,-1382.81140811,0.00013692,2]
[383900451,1757170233500,-151.0,0.00013696,2]
[383900452,1757170233510,-151.240001,0.00013696,2]
[383900453,1757170233520,-151.0,0.00013696,2]
[383900454,1757170233529,-151.0,0.00013697,2]
[383900455,1757170233539,-151.0,0.00013697,2]
[383900456,1757170233549,-151.0,0.00013697,2]
[383900457,1757170233559,-151.0,0.00013697,2]
[383900458,1757170233569,-151.0,0.00013697,2]
[383900459,1757170233579,-151.0,0.00013697,2]
[383900460,1757170233589,-151.0,0.00013697,2]
[383900461,1757170233598,-151.0,0.00013697,2]
[383900462,1757170233609,-277.454374,0.00013697,2]
[383900463,1757170233619,-151.0,0.00013697,2]
[383900464,1757170233629,-151.0,0.00013697,2]
[383900465,1757170233638,-151.0,0.00013697,2]
[383900466,1757170233648,-151.0,0.00013697,2]
[383900467,1757170233658,-151.0,0.00013697,2]
[383900468,1757170233668,-158.680305,0.00013697,2]
[383900469,1757170233678,-151.0,0.00013697,2]
[383900470,1757170233688,-151.0,0.00013697,2]
[383900471,1757170233697,-151.0,0.00013697,2]
[383900472,1757170233708,-151.0,0.00013697,2]
[383900473,1757170233718,-151.0,0.00013697,2]
[383900474,1757170233728,-151.0,0.00013697,2]
[383900475,1757170233738,-151.0,0.00013697,2]
[383900476,1757170233748,-208.204792,0.00013697,2]
[383900477,1757170233760,-151.0,0.00013697,2]
[383900478,1757170233772,-481.92122701,0.00013698,2]
[383900479,1757170233782,-482.0518208,0.00013698,2]
[383900480,1757170233792,-480.0,0.00013698,2]
[383900481,1757170233803,-480.0,0.00013698,2]
[383900482,1757170233813,-480.0,0.00013698,2]
[383900483,1757170233823,-480.0,0.00013698,2]
[383900484,1757170233834,-480.0,0.00013698,2]
[383900485,1757170233845,-480.0,0.00013698,2]
[383900486,1757170233856,-480.0,0.00013698,2]
[383900487,1757170233866,-480.0,0.00013698,2]
[383900488,1757170233877,-480.0,0.00013698,2]
[383900489,1757170233887,-480.0,0.00013698,2]
[383900490,1757170233898,-500.0,0.00013698,2]
[383900491,1757170233909,-480.0,0.00013698,2]
[383900492,1757170233919,-555.14525472,0.00013698,2]
[383900493,1757170233931,-480.0,0.00013698,2]
[383900494,1757170233942,-480.0,0.00013698,2]
[383900495,1757170233952,-418.25936715,0.00013698,2]
[383900496,1757170233963,-480.0,0.00013698,2]
[383900497,1757170233973,-480.0,0.00013698,2]
[383900498,1757170233985,-557.29,0.00013698,2]
[383900499,1757170233996,-480.0,0.00013698,2]
[383900500,1757170234008,-482.3521632,0.00013698,2]
[383900501,1757170234019,-483.0901295,0.00013698,2]
[383900502,1757170234029,-484.64387556,0.00013698,2]
[383900503,1757170234039,-480.0,0.00013698,2]
[383900504,1757170234050,-500.0,0.00013698,2]
[383900505,1757170234060,-480.0,0.00013698,2]
[383900506,1757170234071,-480.0,0.00013698,2]
[383900507,1757170234081,-480.0,0.00013698,2]
[383900508,1757170234091,-481.74702717,0.00013698,2]
[383900509,1757170234101,-480.0,0.00013698,2]
[383900510,1757170234111,-480.0,0.00013698,2]
[383900511,1757170234121,-480.0,0.00013698,2]
[383900512,1757170234131,-480.0,0.00013698,2]
[383900513,1757170234142,-480.57519476,0.00013698,2]
[383900514,1757170234152,-481.19532937,0.00013698,2]
[383900515,1757170234161,-480.0,0.00013698,2]
[383900516,1757170234172,-485.0011216,0.00013698,2]
[383900517,1757170234182,-482.18253972,0.00013698,2]
[383900518,1757170234191,-480.0,0.00013698,2]
[383900519,1757170234201,-480.0,0.00013698,2]
[383900520,1757170234211,-430.23778818,0.00013698,2]
[383900521,1757170234220,-480.0,0.00013698,2]
[383900522,1757170234231,-446.22596691,0.00013698,2]
[383900566,1757170238237,-227.37544241,0.00013695,2]
[383900568,1757170238247,-563.15102572,0.00013695,2]
[383900571,1757170238258,-500.0,0.00013695,2]
[383900573,1757170238267,-500.0,0.00013695,2]
[383900575,1757170238277,-500.0,0.00013695,2]
[383900577,1757170238286,-500.0,0.00013695,2]
[383900579,1757170238295,-303.69012439,0.00013695,2]
[383900581,1757170238305,-500.0,0.00013695,2]
[383900583,1757170238315,-500.0,0.00013695,2]
[383900585,1757170238324,-500.0,0.00013695,2]
[383900587,1757170238334,-500.0,0.00013695,2]
[383900589,1757170238344,-500.0,0.00013695,2]
[383900591,1757170238353,-33.77403309,0.00013698,2]
[383900593,1757170238364,-480.0,0.00013698,2]
[383900595,1757170238374,-504.23,0.00013698,2]
[383900597,1757170238384,-480.0,0.00013698,2]
[383900599,1757170238393,-484.90655194,0.00013698,2]
[383900601,1757170238403,-481.01038569,0.00013698,2]
[383900603,1757170238413,-480.0,0.00013698,2]
[383900605,1757170238425,-480.0,0.00013698,2]
[383900607,1757170238435,-132.26563856,0.00013698,2]
[383900609,1757170238447,-347.73436144,0.00013698,2]
[383900612,1757170238457,-480.0,0.00013698,2]
[383900614,1757170238467,-480.0,0.00013698,2]
[383900616,1757170238478,-480.0,0.00013698,2]
[383900618,1757170238488,-480.0,0.00013698,2]
[383900620,1757170238498,-480.0,0.00013698,2]
[383900622,1757170238508,-480.0,0.00013698,2]
[383900624,1757170238519,-480.0,0.00013698,2]
[383900626,1757170238529,-480.0,0.00013698,2]
[383900628,1757170238538,-485.29137772,0.00013698,2]
[383900630,1757170238548,-480.0,0.00013698,2]
[383900632,1757170238557,-480.0,0.00013698,2]
[383900634,1757170238567,-484.22473888,0.00013698,2]
[383900636,1757170238576,-480.0,0.00013698,2]
[383900638,1757170238586,-480.0,0.00013698,2]
[383900640,1757170238595,-485.75386033,0.00013698,2]
[383900642,1757170238605,-480.0,0.00013698,2]
[383900644,1757170238615,-472.63486917,0.00013698,2]
[383900646,1757170238625,-482.28869188,0.00013698,2]
[383900647,1757170238634,-480.0,0.00013698,2]
[383900649,1757170238643,-480.0,0.00013698,2]
[383900650,1757170238653,-481.68544199,0.00013698,2]
[383900652,1757170238663,-480.0,0.00013698,2]
[383900653,1757170238672,-480.0,0.00013698,2]
[383900655,1757170238682,-480.0,0.00013698,2]
[383900656,1757170238691,-480.0,0.00013698,2]
[383900658,1757170238700,-113.6554722,0.00013698,2]
[383900660,1757170238713,-366.3445278,0.00013698,2]
[383900661,1757170238724,-480.0,0.00013698,2]
[383900663,1757170238734,-555.52869518,0.00013698,2]
[383900664,1757170238744,-480.0,0.00013698,2]
[383900666,1757170238754,-480.0,0.00013698,2]
[383900667,1757170238763,-480.0,0.00013698,2]
[383900669,1757170238773,-478.44517566,0.00013698,2]
[383900671,1757170238785,-1.55482434,0.00013698,2]
[383900672,1757170238795,-151.0,0.00013698,2]
[383900674,1757170238804,-480.0,0.00013698,2]
[383900675,1757170238813,-57.95384224,0.00013698,2]
[383900677,1757170238825,-422.04615776,0.00013698,2]
[383900678,1757170238835,-196.40307195,0.00013698,2]
[383900680,1757170238849,-390.5707598,0.00013698,2]
[383900682,1757170238859,-80.97462729,0.00013698,2]
[383900683,1757170238872,-399.02537271,0.00013698,2]
[383900685,1757170238882,-480.0,0.00013698,2]
[383900687,1757170238894,-21.64628317,0.00013698,2]
[383900688,1757170238906,-458.35371683,0.00013698,2]
[383900690,1757170238916,-480.0,0.00013698,2]
[383900691,1757170238925,-480.0,0.00013698,2]
[383900693,1757170238936,-373.42974288,0.00013698,2]
[383900695,1757170238948,-106.57025712,0.00013698,2]
[383900696,1757170238958,-480.0,0.00013698,2]
[383900698,1757170238968,-480.84795371,0.00013698,2]
[383900699,1757170238978,-480.0,0.00013698,2]
[383900701,1757170238988,-480.0,0.00013698,2]
[383900703,1757170238998,-443.25135847,0.00013698,2]
[383900792,1757170240416,-36.74864153,0.00013698,2]
[383900794,1757170240427,-470.59281836,0.00013698,2]
[383901049,1757170243404,-500.0,0.00013695,2]
[383901051,1757170243415,-170.0047207,0.00013695,2]
[383901315,1757170246385,-260.026,0.00013644,2]
[383901317,1757170246395,-329.9952793,0.00013695,2]
[383901320,1757170246406,-300.0,0.00013695,2]
[383901321,1757170246416,-319.10568041,0.00013695,2]
[383903057,1757170480490,10000.0,0.00012514,2]
[383903058,1757170491823,1000.0,0.00012514,2]
[383903062,1757170910051,155.391365,0.00025,30]
[383903063,1757171037913,666.0,0.00012498,2]
[383903129,1757171283895,209.50939429,0.00012994,2]
[383903301,1757171437265,-180.0,0.00013395,2]
[383903302,1757171437275,-300.0,0.00013395,2]
[383903303,1757171437285,-675.0226789,0.00013395,2]
[383903304,1757171437328,-524.9773211,0.00013395,2]
[383903305,1757171437338,-1237.67490224,0.00013396,2]
[383903306,1757171437350,-425.768937,0.00013396,2]
[383903346,1757171438475,-736.12090922,0.00013396,2]
[383903347,1757171438486,-357.93594716,0.00013396,2]
[383903349,1757171438497,-783.65300744,0.00013396,2]
[383903949,1757171446653,-1645.00212094,0.00013396,2]
[383903951,1757171446666,-498.889991,0.00013396,2]
[383903953,1757171446685,-1023.07078029,0.00013396,2]
[383909799,1757171510331,155.391366,0.00025,30]
[383911346,1757171527547,10000.0,0.00012433,2]
[383914732,1757171585912,1000.0,0.00012427,2]
[383914733,1757171610438,505406.0,0.00023,30]
[383914734,1757171644517,163.70506268,0.00012772,2]
[383914735,1757171672306,631.0,0.00013046,2]
[383914736,1757171678341,631.0,0.00013007,2]
[383914737,1757171685499,631.0,0.00012951,2]
[383914738,1757171695014,631.0,0.00013093,2]
[383914739,1757171701681,631.0,0.00012749,2]
[383914740,1757171707567,631.0,0.00012986,2]
[383914741,1757171710522,631.0,0.00012769,2]
[383914742,1757171910189,842.0,0.00013143,2]
[383914743,1757171927146,842.0,0.00012707,2]
[383914744,1757172060772,666.0,0.0001234,2]
[383914745,1757172140738,2946.0,0.00012942,2]
[383914751,1757172146491,2946.0,0.00012912,2]
[383914758,1757172349890,353.57068649,0.00013013,2]
[383914771,1757172441237,528.70404121,0.00013013,2]
[383914817,1757172514287,10000.0,0.00012306,2]
[383914832,1757172585025,300.0,0.00025,30]
[383914850,1757172632756,-1200.0,0.0001324,2]
[383914851,1757172632767,-1200.0,0.00013241,2]
[383914852,1757172632776,-300.0,0.00013241,2]
[383914853,1757172632786,-21116.16743445,0.00013242,2]
[383914854,1757172632796,-842.0,0.00013242,2]
[383914855,1757172632806,-631.0,0.00013246,2]
[383914856,1757172632815,-842.0,0.00013274,2]
[383914857,1757172632825,-151.0,0.000133,2]
[383914858,1757172632835,-631.0,0.0001333,2]
[383914859,1757172632845,-168.3888056,0.00013339,2]
[383914860,1757172632854,-499.99999999,0.00013345,2]
[383914861,1757172632865,-500.0,0.00013345,2]
[383914865,1757172633061,-500.0,0.00013345,2]
[383914866,1757172633072,-500.0,0.00013345,2]
[383914867,1757172633082,-500.0,0.00013345,2]
[383914868,1757172633092,-500.0,0.00013345,2]
[383914869,1757172633101,-500.0,0.00013345,2]
[383914870,1757172633110,-500.0,0.00013345,2]
[383914871,1757172633121,-500.0,0.00013345,2]
[383914872,1757172633130,-500.0,0.00013345,2]
[383914873,1757172633140,-500.0,0.00013345,2]
[383914874,1757172633149,-500.0,0.00013345,2]
[383914875,1757172633158,-500.0,0.00013345,2]
[383914876,1757172633168,-500.0,0.00013345,2]
[383914877,1757172633178,-500.0,0.00013345,2]
[383914878,1757172633187,-500.0,0.00013345,2]
[383914879,1757172633197,-500.0,0.00013345,2]
[383914880,1757172633207,-500.0,0.00013345,2]
[383914881,1757172633218,-500.0,0.00013345,2]
[383914882,1757172633228,-500.0,0.00013345,2]
[383914883,1757172633237,-500.0,0.00013345,2]
[383914884,1757172633247,-500.0,0.00013345,2]
[383914885,1757172633256,-500.0,0.00013345,2]
[383914886,1757172633267,-500.0,0.00013345,2]
[383914887,1757172633276,-500.0,0.00013345,2]
[383914888,1757172633287,-360.88929407,0.00013345,2]
[383914889,1757172633297,-500.0,0.00013345,2]
[383914890,1757172633307,-500.0,0.00013345,2]
[383914891,1757172633317,-500.0,0.00013345,2]
[383914892,1757172633326,-154.16722085,0.00013345,2]
[383914893,1757172633336,-500.0,0.00013345,2]
[383914894,1757172633346,-24189.90367342,0.00013345,2]
[383914905,1757172633622,-308.46376798,0.00013345,2]
[383915810,1757172647444,-25501.6325586,0.00013345,2]
[383915812,1757172647455,-514.669,0.00013346,2]
[383915814,1757172647464,-69812.39489898,0.00013347,2]
[383915816,1757172647474,-151.0,0.00013347,2]
[383915818,1757172647483,-151.0,0.00013347,2]
[383915820,1757172647493,-151.0,0.00013347,2]
[383915822,1757172647503,-151.0,0.00013347,2]
[383915824,1757172647513,-500.0,0.00013347,2]
[383915826,1757172647523,-842.0,0.00013356,2]
[383915828,1757172647533,-10405.96307714,0.00013396,2]
[383915830,1757172647543,-500.0,0.00013396,2]
[383915832,1757172647553,-500.0,0.00013396,2]
[383915834,1757172647563,-450.80181915,0.00013396,2]
[383915836,1757172647572,-151.0,0.000134,2]
[383915838,1757172647581,-151.0,0.000134,2]
[383915840,1757172647590,-670.0,0.00013402,2]
[383915842,1757172647601,-231.95972004,0.00013423,2]
[383915844,1757172647610,-670.0,0.0001343,2]
[383915846,1757172647620,-670.0,0.00013447,2]
[383915848,1757172647630,-331.69612695,0.00013499,2]
[383915850,1757172647639,-636.88198433,0.00013499,2]
[383915852,1757172647648,-500.0,0.00013499,2]
[383915854,1757172647657,-500.0,0.00013499,2]
[383915856,1757172647666,-500.0,0.00013499,2]
[383915858,1757172647676,-500.0,0.00013499,2]
[383915860,1757172647685,-500.0,0.00013499,2]
[383915862,1757172647695,-500.0,0.00013499,2]
[383915864,1757172647704,-500.0,0.00013499,2]
[383915866,1757172647714,-500.0,0.00013499,2]
[383915868,1757172647724,-500.0,0.00013499,2]
[383915870,1757172647734,-500.0,0.00013499,2]
[383915872,1757172647744,-500.0,0.00013499,2]
[383915874,1757172647754,-526.43980432,0.00013499,2]
[383915876,1757172647763,-151.0,0.000135,2]
[383915878,1757172647773,-151.0,0.000135,2]
[383915880,1757172647783,-151.0,0.000135,2]
[383915882,1757172647793,-151.0,0.000135,2]
[383915884,1757172647803,-30000.0,0.000135,2]
[383915886,1757172647813,-324.880169,0.000135,2]
[383915888,1757172647823,-324.880169,0.000135,2]
[383915891,1757172647834,-151.0,0.000135,2]
[383915893,1757172647844,-324.880169,0.000135,2]
[383915895,1757172647854,-324.880169,0.000135,2]
[383915896,1757172647863,-670.0,0.00013502,2]
[383915899,1757172647872,-670.0,0.00013511,2]
[383915900,1757172647883,-151.0,0.00013522,2]
[383915902,1757172647893,-284.007184,0.00013522,2]
[383915905,1757172647902,-151.0,0.00013522,2]
[383915906,1757172647912,-151.0,0.00013522,2]
[383915908,1757172647922,-151.0,0.00013522,2]
[383915910,1757172647931,-808.667147,0.00013522,2]
[383915912,1757172647940,-808.667147,0.00013522,2]
[383915914,1757172647949,-808.667147,0.00013522,2]
[383915916,1757172647959,-808.667147,0.00013522,2]
[383915918,1757172647968,-151.0,0.00013522,2]
[383915920,1757172647979,-670.0,0.00013523,2]
[383915922,1757172647988,-151.0,0.00013558,2]
[383915924,1757172647997,-151.0,0.00013559,2]
[383915926,1757172648006,-975.0,0.00013559,2]
[383915928,1757172648015,-2154.0,0.00013559,2]
[383915930,1757172648024,-634.0,0.00013559,2]
[383915932,1757172648033,-409.0,0.00013559,2]
[383915934,1757172648042,-16138.7159453,0.0001358,2]
[383915936,1757172648052,-2420.7756687,0.0001358,2]
[383915938,1757172648061,-151.0,0.0001358,2]
[383915940,1757172648071,-151.0,0.0001358,2]
[383915942,1757172648081,-151.0,0.0001358,2]
[383915944,1757172648090,-178.815591,0.0001358,2]
[383915946,1757172648099,-151.0,0.0001358,2]
[383915948,1757172648108,-151.0,0.0001358,2]
[383915950,1757172648118,-151.0,0.0001358,2]
[383915952,1757172648128,-151.0,0.0001358,2]
[383915954,1757172648138,-151.0,0.0001358,2]
[383915956,1757172648148,-808.667147,0.0001358,2]
[383915958,1757172648157,-808.667147,0.0001358,2]
[383915960,1757172648166,-808.667147,0.0001358,2]
[383915962,1757172648176,-808.667147,0.0001358,2]
[383915964,1757172648187,-151.0,0.0001358,2]
[383915966,1757172648197,-324.880169,0.0001358,2]
[383915968,1757172648206,-324.880169,0.0001358,2]
[383915970,1757172648216,-195.5598,0.0001358,2]
[383915972,1757172648226,-324.880169,0.0001358,2]
[383915974,1757172648240,-324.880169,0.0001358,2]
[383915977,1757172648250,-631.0,0.00013584,2]
[383915979,1757172648260,-160.0,0.00013587,2]
[383915980,1757172648269,-160.0,0.00013587,2]
[383915982,1757172648279,-160.0,0.00013587,2]
[383915984,1757172648289,-160.0,0.00013587,2]
[383915987,1757172648298,-160.0,0.00013587,2]
[383915989,1757172648308,-203.21852024,0.00013587,2]
[383915991,1757172648317,-160.0,0.00013587,2]
[383915993,1757172648327,-217.58669629,0.00013587,2]
[383915995,1757172648337,-530.56961759,0.00013587,2]
[383915997,1757172648347,-232.99021696,0.00013587,2]
[383915999,1757172648357,-417.15472785,0.00013587,2]
[383916001,1757172648367,-846.58554688,0.00013587,2]
[383916003,1757172648377,-151.0,0.00013598,2]
[383916005,1757172648387,-151.0,0.00013598,2]
[383916007,1757172648397,-151.0,0.00013598,2]
[383916009,1757172648407,-8988.59525132,0.00013598,2]
[383916011,1757172648417,-1000.0,0.00013598,2]
[383916013,1757172648427,-151.0,0.000136,2]
[383916015,1757172648437,-151.0,0.000136,2]
[383916017,1757172648447,-157.0,0.000136,2]
[383916019,1757172648456,-151.0,0.000136,2]
[383916021,1757172648465,-157.0,0.000136,2]
[383916023,1757172648476,-157.0,0.000136,2]
[383916025,1757172648486,-157.0,0.000136,2]
[383916027,1757172648496,-157.0,0.000136,2]
[383916029,1757172648505,-500.0,0.000136,2]
[383916031,1757172648515,-157.0,0.000136,2]
[383916033,1757172648524,-308.0,0.000136,2]
[383916035,1757172648534,-157.0,0.000136,2]
[383916037,1757172648544,-157.0,0.000136,2]
[383916039,1757172648554,-308.12725769,0.000136,2]
[383916041,1757172648564,-157.0,0.000136,2]
[383916043,1757172648573,-157.0,0.000136,2]
[383916045,1757172648583,-157.0,0.000136,2]
[383916047,1757172648593,-803.0,0.000136,2]
[383916049,1757172648603,-500.0,0.00013621,2]
[383916051,1757172648613,-150.0,0.00013644,2]
[383916053,1757172648623,-150.074,0.00013644,2]
[383916055,1757172648634,-150.119,0.00013644,2]
[383916057,1757172648644,-3000.0,0.00013672,2]
[383916059,1757172648653,-151.0,0.00013672,2]
[383916061,1757172648662,-151.0,0.00013672,2]
[383916062,1757172648672,-324.880169,0.00013672,2]
[383916064,1757172648681,-324.880169,0.00013672,2]
[383916066,1757172648691,-324.880169,0.00013672,2]
[383916068,1757172648701,-324.880169,0.00013672,2]
[383916070,1757172648711,-500.61231435,0.00013673,2]
[383916072,1757172648720,-500.4819974,0.00013673,2]
[383916074,1757172648730,-500.0,0.00013673,2]
[383916076,1757172648739,-500.0,0.00013673,2]
[383916078,1757172648750,-486.9843952,0.00013673,2]
[383916079,1757172648760,-609.45184605,0.00013673,2]
[383916081,1757172648770,-500.0,0.00013673,2]
[383916083,1757172648779,-500.0,0.00013673,2]
[383916085,1757172648789,-500.0,0.00013673,2]
[383916088,1757172648800,-501.59109932,0.00013673,2]
[383916090,1757172648810,-500.0,0.00013673,2]
[383916091,1757172648820,-500.0,0.00013673,2]
[383916093,1757172648829,-501.51964058,0.00013673,2]
[383916096,1757172648839,-500.0,0.00013673,2]
[383916097,1757172648849,-500.0,0.00013673,2]
[383916099,1757172648859,-500.0,0.00013673,2]
[383916102,1757172648868,-501.82497982,0.00013673,2]
[383916104,1757172648878,-500.0,0.00013673,2]
[383916105,1757172648887,-500.0,0.00013673,2]
[383916108,1757172648898,-500.0,0.00013673,2]
[383916109,1757172648907,-500.0,0.00013673,2]
[383916111,1757172648916,-500.0,0.00013673,2]
[383916113,1757172648926,-500.0,0.00013673,2]
[383916115,1757172648936,-500.0,0.00013673,2]
[383916117,1757172648946,-500.0,0.00013673,2]
[383916119,1757172648955,-500.0,0.00013673,2]
[383916121,1757172648966,-500.0,0.00013673,2]
[383916123,1757172648976,-335.52253943,0.00013673,2]
[383916125,1757172648986,-500.0,0.00013673,2]
[383916127,1757172648996,-500.0,0.00013673,2]
[383916129,1757172649007,-500.0,0.00013673,2]
[383916131,1757172649017,-500.0,0.00013673,2]
[383916133,1757172649027,-500.0,0.00013673,2]
[383916135,1757172649037,-500.0,0.00013673,2]
[383916137,1757172649048,-502.45815732,0.00013673,2]
[383916139,1757172649058,-500.75102495,0.00013673,2]
[383916141,1757172649068,-500.0,0.00013673,2]
[383916143,1757172649079,-500.0,0.00013673,2]
[383916145,1757172649088,-500.00546577,0.00013673,2]
[383916147,1757172649098,-500.61081285,0.00013673,2]
[383916149,1757172649108,-258.2006534,0.00013673,2]
[383916151,1757172649118,-500.0,0.00013673,2]
[383916153,1757172649128,-500.0,0.00013673,2]
[383916155,1757172649138,-500.0,0.00013673,2]
[383916157,1757172649148,-500.0,0.00013673,2]
[383916159,1757172649159,-500.0,0.00013673,2]
[383916161,1757172649169,-500.0,0.00013673,2]
[383916163,1757172649178,-500.0,0.00013673,2]
[383916165,1757172649188,-500.0,0.00013673,2]
[383916167,1757172649198,-503.10042021,0.00013673,2]
[383916169,1757172649207,-151.0,0.00013673,2]
[383916171,1757172649217,-808.667147,0.00013673,2]
[383916173,1757172649227,-808.667147,0.00013673,2]
[383916175,1757172649240,-808.667147,0.00013673,2]
[383916177,1757172649250,-808.667147,0.00013673,2]
[383916179,1757172649259,-151.0,0.00013673,2]
[383916181,1757172649269,-324.880169,0.00013682,2]
[383916183,1757172649280,-324.880169,0.00013682,2]
[383916185,1757172649290,-324.880169,0.00013682,2]
[383916187,1757172649300,-324.880169,0.00013682,2]
[383916188,1757172649310,-670.0,0.00013682,2]
[383916190,1757172649320,-631.0,0.00013691,2]
[383916192,1757172649331,-157.0,0.00013697,2]
[383916194,1757172649341,-157.0,0.00013697,2]
[383916196,1757172649351,-256.63693456,0.00013697,2]
[383916198,1757172649360,-500.0,0.00013697,2]
[383916200,1757172649370,-202.9344424,0.00013697,2]
[383916202,1757172649381,-157.0,0.00013697,2]
[383916205,1757172649391,-157.0,0.00013697,2]
[383916206,1757172649401,-157.0,0.00013697,2]
[383916208,1757172649411,-151.0,0.00013697,2]
[383916210,1757172649421,-151.0,0.00013697,2]
[383916212,1757172649430,-765.39355551,0.00013698,2]
[383916214,1757172649441,-500.0,0.00013698,2]
[383916216,1757172649451,-628.25684848,0.00013698,2]
[383916218,1757172649461,-482.15790531,0.00013698,2]
[383916220,1757172649471,-480.0,0.00013698,2]
[383916222,1757172649481,-480.0,0.00013698,2]
[383916240,1757172649645,-481.31797832,0.00013698,2]
[383916242,1757172649657,-489.33006528,0.00013698,2]
[383916244,1757172649667,-480.0,0.00013698,2]
[383916246,1757172649677,-480.0,0.00013698,2]
[383916248,1757172649687,-480.0,0.00013698,2]
[383916250,1757172649697,-480.0,0.00013698,2]
[383916252,1757172649707,-485.69771851,0.00013698,2]
[383916254,1757172649716,-302.65,0.00013698,2]
[383916256,1757172649726,-521.47277062,0.00013698,2]
[383916258,1757172649735,-480.0,0.00013698,2]
[383916260,1757172649744,-380.38914142,0.00013698,2]
[383916262,1757172649754,-480.0,0.00013698,2]